bitfinex/quotes_ETHUSD_20250517
["timestamp","ask_amount","ask_price","bid_price","bid_amount"]
[1747504296609,4.04088898,2474.8,2474.6,0.55]
[1747504296902,7.656,2475.1,2474.6,0.55]
[1747504297066,4.04089174,2474.8,2474.6,0.55]
[1747504297406,4.04089384,2474.7,2474.6,0.55]
[1747504300469,4.04119653,2474.6,2474.5,0.55]
[1747504302305,4.04122336,2474.5,2474.4,7.66]
[1747504304306,4.04115102,2474.6,2474.5,0.55]
[1747504308609,0.7633,2474.4,2473.8,0.7609]
[1747504308809,4.04203718,2474.0,2473.8,0.7609]
[1747504309276,7.654,2474.3,2474.0,0.55]
[1747504309608,4.04180086,2474.2,2474.0,0.55]
[1747504309975,4.04187381,2474.1,2474.0,0.55]
[1747504310175,4.04203718,2474.0,2473.9,0.38405073]
[1747504310700,4.04203718,2474.0,2473.9,0.93405073]
[1747504311925,4.80533718,2474.0,2473.9,0.38405073]
[1747504313317,4.04236397,2473.8,2473.7,0.55]
[1747504313520,4.04180615,2474.2,2473.7,1.44659]
[1747504313721,4.04130853,2474.5,2474.0,0.7541]
[1747504313927,4.04141801,2474.4,2474.1,8.205]
[1747504314132,4.04141801,2474.4,2474.1,9.10091]
[1747504314625,4.04141801,2474.4,2474.3,0.55]
[1747504315335,4.04113342,2474.6,2474.4,0.7541]
[1747504315625,4.04122044,2474.5,2474.4,1.3041]
[1747504317025,4.04096698,2474.7,2474.5,0.55]
[1747504319939,4.0405964,2474.9,2474.7,0.55]
[1747504320530,4.04025129,2475.1,2474.7,0.55]
[1747504320834,4.0400854,2475.2,2474.9,0.55]
[1747504321035,0.7837,2475.5,2474.9,0.55]
[1747504321201,4.04012512,2475.2,2474.9,0.55]
[1747504321400,4.04012512,2475.2,2474.9,1.1301858]
[1747504321925,4.03983627,2475.4,2474.9,5.17071923]
[1747504322108,4.03992582,2475.3,2474.9,5.17071923]
[1747504322305,4.03992582,2475.3,2474.9,1.1301858]
[1747504325467,8.4357,2475.7,2474.9,1.1301858]
[1747504325604,4.04040404,2475.0,2474.9,0.55]
[1747504325805,4.04040404,2475.0,2474.9,8.204]
[1747504326137,4.04031705,2475.1,2474.9,0.55]
[1747504326300,4.04031705,2475.1,2475.0,8.204]
[1747504326639,4.0401336,2475.2,2475.0,8.204]
[1747504327144,4.0401336,2475.2,2475.1,7.654]
[1747504327329,4.0401336,2475.2,2475.1,8.03814536]
[1747504327526,4.03978521,2475.4,2475.2,0.55]
[1747504327833,4.03991435,2475.3,2475.2,0.55]
[1747504328138,2.74043932,2475.7,2475.2,2.20301454]
[1747504328139,8.4292,2475.7,2475.2,2.20301454]
[1747504328313,4.0396888,2475.5,2475.2,2.20301454]
[1747504328508,4.03975183,2475.4,2475.2,2.20301454]
[1747504329040,4.03921727,2475.8,2475.3,4.58979722]
[1747504329210,4.03909743,2475.9,2475.3,4.58979722]
[1747504329211,7.649,2476.1,2475.7,0.8275]
[1747504329415,0.8256,2476.3,2475.8,0.55]
[1747504329616,4.03888222,2476.0,2475.8,0.55]
[1747504330911,4.03893533,2475.9,2475.8,0.55]
[1747504334200,4.03893533,2475.9,2475.7,0.55]
[1747504334201,4.03909847,2475.8,2475.7,0.55]
[1747504334401,4.03926162,2475.7,2475.6,8.203]
[1747504335539,4.0388411,2476.0,2475.7,0.55]
[1747504335745,4.03868108,2476.1,2475.7,0.55]
[1747504337037,4.03853403,2476.2,2475.7,4.58924599]
[1747504337339,11.68553403,2476.2,2475.9,0.55]
[1747504337536,11.68553403,2476.2,2475.9,1.3803]
[1747504337745,7.647,2476.3,2475.9,1.92223959]
[1747504338111,4.0384573,2476.2,2475.9,1.92223959]
[1747504338310,4.0386598,2476.1,2475.9,1.92223959]
[1747504339009,4.03854064,2476.2,2475.9,1.92223959]
[1747504341949,4.03833591,2476.3,2475.9,1.92223959]
[1747504342116,4.03845005,2476.2,2475.9,1.92223959]
[1747504342449,4.03828873,2476.3,2475.9,1.92223959]
[1747504342648,4.03854304,2476.2,2475.9,1.3803]
[1747504348552,4.03820117,2476.4,2475.9,5.41923138]
[1747504348848,4.03820117,2476.4,2476.1,0.55]
[1747504349147,4.03820117,2476.4,2476.2,7.646]
[1747504350542,0.8325,2476.7,2476.3,1.3395]
[1747504350730,4.03796959,2476.5,2476.3,1.3395]
[1747504351121,4.03787055,2476.6,2476.3,1.3395]
[1747504351554,4.03797011,2476.5,2476.3,1.3395]
[1747504352057,4.03811985,2476.4,2476.0,0.7895]
[1747504352355,4.03840707,2476.3,2476.2,0.55]
[1747504353545,4.03840707,2476.3,2476.2,8.195]
[1747504354559,4.03872999,2476.1,2475.8,25.56064524]
[1747504354757,4.03872999,2476.1,2475.9,0.55]
[1747504354919,4.03893533,2475.9,2475.8,28.75635614]
[1747504355251,4.03893533,2475.9,2475.8,25.56064524]
[1747504355457,4.03886765,2476.0,2475.8,26.11064524]
[1747504356059,4.03886765,2476.0,2475.9,0.38387532]
[1747504357860,4.81189871,2476.1,2475.9,0.38387532]
[1747504359345,4.03869871,2476.1,2476.0,0.38387532]
[1747504360860,4.03869871,2476.1,2475.9,0.38387532]
[1747504361049,4.03877221,2476.0,2475.9,0.38387532]
[1747504361961,8.4142,2476.3,2475.9,0.38387532]
[1747504362174,4.03867839,2476.1,2475.9,0.38387532]
[1747504362494,4.03877221,2476.0,2475.9,0.38387532]
[1747504362645,4.03870689,2476.1,2475.9,0.38387532]
[1747504363290,4.03852258,2476.2,2475.9,0.38387532]
[1747504363484,4.03852258,2476.2,2476.0,0.93387532]
[1747504363684,11.6793244,2476.3,2476.0,0.93387532]
[1747504364314,4.038463,2476.2,2476.0,0.93387532]
[1747504365590,4.0386091,2476.1,2476.0,0.93387532]
[1747504365802,4.0386091,2476.1,2475.9,0.55]
[1747504367197,4.0386091,2476.1,2476.0,0.38468285]
[1747504372141,11.67935887,2476.3,2476.0,0.38468285]
[1747504372325,7.639,2476.4,2476.0,0.38468285]
[1747504372497,4.03841148,2476.3,2476.0,0.38468285]
[1747504373231,4.0386091,2476.1,2476.0,0.38468285]
[1747504373609,4.0386091,2476.1,2475.9,1.3053]
[1747504373815,4.0386091,2476.1,2476.0,0.55]
[1747504374128,4.03854062,2476.2,2476.0,0.55]
[1747504375631,8.4122,2476.5,2476.0,0.55]
[1747504375830,4.03844024,2476.3,2476.0,0.55]
[1747504376233,4.03844024,2476.3,2476.0,1.89630283]
[1747504376736,4.03844024,2476.3,2476.1,7.64]
[1747504377399,4.03844024,2476.3,2476.2,0.38505681]
[1747504381937,4.03815164,2476.4,2476.2,0.38505681]
[1747504382235,4.03815164,2476.4,2476.1,7.64]
[1747504382534,4.03829919,2476.3,2476.1,7.64]
[1747504384905,4.03795679,2476.5,2476.1,7.64]
[1747504385132,4.03795679,2476.5,2476.2,0.55]
[1747504385314,4.03818497,2476.4,2476.3,0.38559496]
[1747504386134,4.83398497,2476.4,2476.3,0.38559496]
[1747504390145,6.79522429,2476.4,2476.3,0.38559496]
[1747504390345,14.79522429,2476.4,2476.3,0.38559496]
[1747504391529,14.79522429,2476.4,2475.6,7.64]
[1747504391530,0.7841,2476.1,2475.6,7.64]
[1747504391730,4.03942478,2475.6,2475.5,0.47364524]
[1747504392851,12.82352478,2475.6,2475.5,0.47364524]
[1747504393053,13.12753832,2475.6,2475.5,0.47364524]
[1747504393354,26.70095073,2475.6,2475.5,0.47364524]
[1747504393916,4.03975115,2475.4,2475.3,0.63152699]
[1747504394148,53.83651647,2475.4,2475.3,0.63152699]
[1747504394364,53.83651647,2475.4,2474.6,1.27352256]
[1747504394365,4.04089384,2474.7,2474.6,1.27352256]
[1747504394653,4.0415471,2474.3,2474.2,7.64]
[1747504396684,4.04172522,2474.2,2473.6,9.10937951]
[1747504396837,4.04252738,2473.7,2473.6,9.65937951]
[1747504397024,4.04252738,2473.7,2473.6,8.4682]
[1747504397530,4.04252738,2473.7,2473.6,7.635]
[1747504400669,7.636,2473.7,2473.6,7.635]
[1747504401171,11.67945198,2473.8,2473.6,7.635]
[1747504401466,4.04252738,2473.7,2473.6,7.635]
[1747504402735,6.7558667,2473.7,2473.6,7.635]
[1747504403268,4.04336036,2473.2,2473.0,0.8261]
[1747504403565,4.04336036,2473.2,2472.2,0.8261]
[1747504403566,4.04367165,2473.0,2472.2,0.8261]
[1747504403739,4.04433257,2472.6,2472.2,0.8261]
[1747504403937,4.04433257,2472.6,2472.2,2.48154179]
[1747504404346,4.04474311,2472.4,2472.2,2.48154179]
[1747504404550,4.04455965,2472.5,2472.2,0.8261]
[1747504404747,7.638,2472.8,2472.3,0.55]
[1747504405271,7.638,2472.7,2472.3,0.55]
[1747504405454,6.97133333,2472.7,2472.3,0.90141]
[1747504405635,4.04438385,2472.6,2472.3,0.90141]
[1747504406069,4.04449999,2472.5,2472.3,0.90141]
[1747504406469,6.97133333,2472.7,2472.2,0.8261]
[1747504406661,4.04476803,2472.4,2472.2,0.8261]
[1747504406972,4.04458218,2472.5,2472.2,0.8261]
[1747504409301,4.04399811,2472.9,2472.2,4.87104475]
[1747504409582,4.04390764,2472.9,2472.5,0.55]
[1747504410645,11.68274618,2473.0,2472.5,4.59445658]
[1747504410845,11.6838673,2472.9,2472.5,1.41392097]
[1747504411046,4.0438673,2472.9,2472.6,0.8261]
[1747504411586,4.04416225,2472.7,2472.5,0.55]
[1747504411950,8.3921,2473.2,2472.5,0.55]
[1747504412145,4.04377141,2473.0,2472.5,4.5944736]
[1747504412479,4.04386745,2472.9,2472.5,1.49652881]
[1747504412658,4.04401924,2472.8,2472.5,1.49652881]
[1747504412853,4.04404558,2472.8,2472.5,1.49652881]
[1747504413892,4.04448938,2472.5,2472.2,0.8261]
[1747504414043,4.04472624,2472.4,2472.2,0.8261]
[1747504414248,4.04456501,2472.5,2472.2,0.8261]
[1747504415053,4.04417776,2472.7,2472.3,4.59469858]
[1747504415254,7.64,2472.8,2472.3,0.55]
[1747504415580,4.04475117,2472.4,2472.2,0.8261]
[1747504415880,4.04479674,2472.4,2472.2,0.8261]
[1747504416687,4.04474208,2472.4,2472.2,0.8261]
[1747504418190,4.04457731,2472.5,2472.2,0.8261]
[1747504418762,4.04466264,2472.4,2472.2,0.8261]
[1747504419280,4.04488769,2472.3,2472.1,8.188]
[1747504420649,4.04493222,2472.3,2472.1,8.188]
[1747504420850,4.04492121,2472.3,2472.1,8.188]
[1747504422183,4.04498017,2472.2,2472.1,8.188]
[1747504423182,4.04487077,2472.3,2472.1,8.188]
[1747504423382,4.04465296,2472.4,2471.9,7.644]
[1747504423593,4.04540451,2472.0,2471.9,7.644]
[1747504423955,4.04563476,2471.8,2471.7,17.451]
[1747504424285,4.04597178,2471.6,2471.4,8.4379]
[1747504424476,4.04607477,2471.6,2471.4,8.4379]
[1747504424782,4.04606361,2471.6,2471.4,8.4379]
[1747504424987,4.04606361,2471.6,2471.2,8.4389]
[1747504425188,4.04614212,2471.5,2471.2,9.68746126]
[1747504425487,4.04588661,2471.7,2471.3,0.55]
[1747504425683,11.68770728,2471.8,2471.3,4.59631752]
[1747504425684,11.687687,2471.8,2471.3,4.59631752]
[1747504425857,7.642,2472.0,2471.7,0.55]
[1747504426052,11.68742659,2472.0,2471.7,0.55]
[1747504426257,4.04563476,2471.8,2471.7,8.195]
[1747504426552,4.04563476,2471.8,2471.7,7.645]
[1747504427485,4.04611758,2471.6,2471.5,0.55]
[1747504427692,4.04611758,2471.6,2471.5,8.192]
[1747504428077,4.04611758,2471.6,2471.5,7.642]
[1747504428588,4.0463857,2471.4,2471.2,0.7939]
[1747504428791,4.04645328,2471.3,2471.1,7.642]
[1747504429577,4.04636641,2471.4,2471.1,7.642]
[1747504430091,4.04599271,2471.6,2471.2,0.55]
[1747504430266,7.642,2471.6,2471.1,7.642]
[1747504430467,4.04622514,2471.5,2471.1,7.642]
[1747504430672,11.68822514,2471.5,2471.1,10.63679403]
[1747504431189,11.68822514,2471.5,2471.0,4.84071608]
[1747504431190,0.7844,2471.4,2470.9,17.465]
[1747504431360,4.04643143,2471.4,2470.9,29.15510471]
[1747504431560,4.0465312,2471.3,2471.0,0.55]
[1747504432486,4.04676389,2471.2,2471.0,0.55]
[1747504432859,4.04663964,2471.2,2471.0,0.55]
[1747504433502,4.04678078,2471.1,2471.0,0.55]
[1747504433889,4.04694455,2471.0,2470.9,17.465]
[1747504434089,4.04722584,2470.9,2470.7,0.7939]
[1747504434401,4.04655565,2471.3,2470.8,4.59719824]
[1747504434699,4.04658108,2471.3,2470.8,2.25815743]
[1747504434909,11.69837774,2471.4,2470.8,6.30542075]
[1747504435197,11.69837774,2471.4,2471.0,0.55]
[1747504435414,4.04647424,2471.3,2471.0,0.55]
[1747504435797,7.652,2471.4,2471.0,0.55]
[1747504435987,7.67,2471.5,2471.1,0.7939]
[1747504436186,7.67,2471.5,2471.1,8.4369]
[1747504436585,7.67,2471.5,2471.1,12.48356578]
[1747504436890,11.71479942,2471.7,2471.2,0.55]
[1747504437089,7.668,2471.7,2471.2,0.55]
[1747504437292,11.71392198,2471.7,2471.2,4.59660507]
[1747504437629,4.04599458,2471.6,2471.2,0.55]
[1747504437785,4.04615646,2471.5,2471.2,8.194]
[1747504438812,4.83045495,2471.6,2471.2,8.194]
[1747504439019,4.04605495,2471.6,2471.2,8.194]
[1747504439396,7.668,2471.7,2471.2,8.194]
[1747504439595,11.71390651,2471.7,2471.2,12.24054241]
[1747504439794,7.668,2471.7,2471.2,12.24054241]
[1747504440486,4.04596472,2471.6,2471.2,8.194]
[1747504441220,4.04571185,2471.8,2471.4,0.55]
[1747504441517,7.658,2471.9,2471.5,4.04603566]
[1747504441828,13.59341241,2472.4,2471.7,0.7939]
[1747504441989,1.9645206,2472.3,2471.2,1.77505394]
[1747504442188,4.04542361,2472.0,2471.5,4.04605444]
[1747504442429,4.04549997,2471.9,2471.4,4.59620751]
[1747504442793,4.04549997,2471.9,2471.6,0.38541132]
[1747504442989,4.04565645,2471.8,2471.6,0.38541132]
[1747504443238,6.00968747,2472.1,2471.6,0.38541132]
[1747504443437,4.04577085,2471.8,2471.6,0.38541132]
[1747504443599,4.04577085,2471.8,2471.4,0.55]
[1747504444012,4.04565749,2471.8,2471.4,4.59627734]
[1747504444332,4.04556307,2471.9,2471.4,4.59627734]
[1747504445135,4.04556307,2471.9,2471.5,0.38550583]
[1747504445433,4.04506246,2472.2,2471.7,4.85242546]
[1747504445610,12.49430691,2472.3,2471.8,7.644]
[1747504445802,4.04506613,2472.2,2471.8,7.644]
[1747504446003,4.04465607,2472.4,2471.9,4.59538934]
[1747504446203,4.04483637,2472.3,2471.9,0.55]
[1747504446738,0.7568,2472.5,2472.1,0.55]
[1747504447046,11.7096877,2472.4,2472.0,1.3567]
[1747504447647,4.0446877,2472.4,2472.0,1.3567]
[1747504447809,4.0446877,2472.4,2472.0,5.40196299]
[1747504448010,11.7085706,2472.5,2472.0,5.40196299]
[1747504448438,4.04466894,2472.4,2472.0,5.40196299]
[1747504448804,4.04466894,2472.4,2472.0,1.3567]
[1747504449051,4.04466894,2472.4,2472.0,5.40197582]
[1747504449527,11.70463638,2472.5,2472.0,5.40197582]
[1747504449724,4.04439367,2472.6,2472.2,0.55]
[1747504449936,4.04450883,2472.5,2472.2,0.55]
[1747504450133,4.04450883,2472.5,2472.3,7.643]
[1747504450433,4.04465296,2472.4,2472.3,7.643]
[1747504451744,7.66,2472.6,2472.3,7.643]
[1747504451919,7.66,2472.5,2472.3,7.643]
[1747504452643,11.70233932,2472.6,2472.3,7.643]
[1747504452946,11.70233932,2472.6,2472.3,8.4048]
[1747504453648,4.04433932,2472.6,2472.3,8.4048]
[1747504453809,11.70433932,2472.6,2472.3,8.4048]
[1747504454457,4.04450185,2472.5,2472.3,8.4048]
[1747504455948,11.70041399,2472.6,2472.3,8.4048]
[1747504456241,4.04441399,2472.6,2472.3,8.4048]
[1747504456949,4.04450016,2472.5,2472.3,8.4048]
[1747504457448,4.04442202,2472.6,2472.3,8.4048]
[1747504457818,11.69620323,2472.7,2472.3,8.4048]
[1747504457819,4.04449268,2472.5,2472.3,8.4048]
[1747504459658,10.7944206,2472.9,2472.3,8.4048]
[1747504459860,7.643,2472.7,2472.3,8.4048]
[1747504460182,4.04432695,2472.6,2472.3,8.4048]
[1747504462390,4.04449427,2472.5,2472.3,8.4048]
[1747504462697,4.04457951,2472.5,2472.3,8.4048]
[1747504463054,4.04457951,2472.5,2472.3,7.643]
[1747504463267,4.04465296,2472.4,2472.3,8.193]
[1747504463594,4.04458207,2472.5,2472.3,8.193]
[1747504466504,2.7944206,2472.9,2472.4,0.55]
[1747504466662,4.0438347,2473.0,2472.5,4.04440905]
[1747504466861,6.83320545,2473.1,2472.4,1.3537]
[1747504466862,4.04416452,2472.7,2472.4,1.3537]
[1747504467198,4.0443267,2472.6,2472.4,1.3537]
[1747504467403,4.04425983,2472.7,2472.4,1.3537]
[1747504468401,4.04425983,2472.7,2472.5,0.38617381]
[1747504469609,4.04425983,2472.7,2472.4,1.3537]
[1747504470813,1.9645206,2472.7,2472.1,0.48218979]
[1747504470996,4.04457431,2472.5,2472.2,8.197]
[1747504471610,4.04457431,2472.5,2472.3,0.38637335]
[1747504472816,4.04457431,2472.5,2472.2,8.197]
[1747504473615,4.04478958,2472.4,2472.2,7.647]
[1747504474212,4.04458811,2472.5,2472.2,7.647]
[1747504476028,6.00875005,2472.7,2472.2,7.647]
[1747504476316,4.04416225,2472.7,2472.3,0.38683698]
[1747504476531,4.04453315,2472.5,2472.3,0.38683698]
[1747504476824,4.04438677,2472.6,2472.3,0.38683698]
[1747504477113,4.04450641,2472.5,2472.3,0.38683698]
[1747504477906,11.68608242,2472.8,2472.4,1.72223698]
[1747504478114,4.04416498,2472.7,2472.4,1.72223698]
[1747504479306,4.04390474,2472.9,2472.5,0.38683698]
[1747504479613,7.642,2472.8,2472.5,0.38683698]
[1747504479779,11.68601038,2472.8,2472.5,0.38683698]
[1747504479978,4.04401038,2472.8,2472.5,0.38683698]
[1747504480177,4.04387463,2472.9,2472.5,0.38683698]
[1747504480617,11.68472661,2473.0,2472.5,0.38683698]
[1747504480779,4.04409893,2472.8,2472.5,0.38683698]
[1747504481080,4.04409893,2472.8,2472.6,0.38683698]
[1747504481528,4.04409893,2472.8,2472.7,0.38683698]
[1747504483130,6.83941953,2472.8,2472.7,0.38683698]
[1747504484129,4.87489893,2472.8,2472.7,0.38683698]
[1747504484433,4.04411732,2472.8,2472.3,12.17398252]
[1747504484716,4.04417297,2472.7,2472.3,8.12918979]
[1747504484920,4.04442627,2472.6,2472.3,8.12918979]
[1747504485212,4.04427288,2472.7,2472.3,8.12918979]
[1747504485411,4.04432665,2472.6,2472.3,8.12918979]
[1747504485593,4.04432665,2472.6,2472.4,0.38685316]
[1747504487117,4.04432665,2472.6,2472.5,0.38685316]
[1747504487613,7.641,2472.8,2472.5,0.38685316]
[1747504487806,11.68507545,2472.8,2472.5,1.14665316]
[1747504488517,4.87527286,2473.0,2472.6,0.38685316]
[1747504488723,6.00803793,2473.1,2472.6,0.38685316]
[1747504488724,7.641,2473.1,2472.6,0.38685316]
[1747504489018,4.04401672,2472.8,2472.6,0.38685316]
[1747504489722,4.04401672,2472.8,2472.7,0.38685316]
[1747504491316,4.04391724,2472.9,2472.7,0.38685316]
[1747504491818,4.0439987,2472.8,2472.7,0.38685316]
[1747504494330,12.8666987,2472.8,2472.7,0.38685316]
[1747504495987,4.04465296,2472.4,2472.3,0.48218979]
[1747504496927,4.86735296,2472.4,2472.3,0.48218979]
[1747504497793,4.04498017,2472.2,2472.1,0.38699435]
[1747504498311,12.86768017,2472.2,2472.1,0.38699435]
[1747504499328,4.04563476,2471.8,2471.7,0.48218979]
[1747504499526,11.68550345,2471.9,2471.7,0.48218979]
[1747504499734,4.04550345,2471.9,2471.7,0.48218979]
[1747504499899,11.68550345,2471.9,2471.7,0.48218979]
[1747504500230,4.04563476,2471.8,2471.7,1.3587377]
[1747504500923,4.04581242,2471.7,2471.6,0.55]
[1747504502894,7.64,2472.0,2471.6,0.55]
[1747504503094,7.641,2472.0,2471.7,0.8326]
[1747504503388,11.68635507,2472.0,2471.7,0.8326]
[1747504503592,11.68635507,2472.0,2471.7,2.1395639]
[1747504504326,4.04559703,2471.9,2471.7,2.1395639]
[1747504504531,4.04563476,2471.8,2471.7,2.1395639]
[1747504504694,7.641,2472.0,2471.7,2.1395639]
[1747504504894,11.68637524,2472.0,2471.7,2.1395639]
[1747504505227,4.04547274,2471.9,2471.7,2.1395639]
[1747504506324,4.04505427,2472.2,2471.8,0.81895639]
[1747504506630,4.04505427,2472.2,2472.0,0.55]
[1747504508531,4.0451438,2472.1,2472.0,0.55]
[1747504509819,4.04506085,2472.2,2472.0,0.55]
[1747504512436,0.8048,2472.7,2472.0,1.47251564]
[1747504512739,4.04403621,2472.8,2472.3,0.7513]
[1747504512899,4.04411934,2472.8,2472.4,8.192]
[1747504513100,4.04417181,2472.7,2472.4,9.89529577]
[1747504515447,4.0441191,2472.8,2472.4,9.89529577]
[1747504515615,11.68489031,2472.9,2472.4,9.89529577]
[1747504516246,4.04389031,2472.9,2472.4,9.89529577]
[1747504516422,9.97692231,2473.1,2472.1,7.642]
[1747504516423,4.04465296,2472.4,2472.1,7.642]
[1747504516626,4.04498017,2472.2,2472.1,7.642]
[1747504517833,4.04498017,2472.2,2471.5,7.64]
[1747504517834,4.04481656,2472.3,2471.7,7.642]
[1747504518023,4.04558129,2471.9,2471.8,0.55]
[1747504518240,4.04543412,2472.0,2471.8,0.55]
[1747504518628,4.04547109,2471.9,2471.8,0.55]
[1747504519144,4.04547109,2471.9,2471.8,0.93593061]
[1747504520255,4.04543412,2472.0,2471.8,0.93593061]
[1747504521852,4.04543412,2472.0,2471.9,0.93593061]
[1747504522433,12.43723412,2472.0,2471.9,0.38593061]
[1747504523154,4.04579843,2471.7,2471.6,0.93593061]
[1747504523831,4.04579843,2471.7,2471.6,0.38593061]
[1747504524370,4.04612583,2471.5,2471.4,8.02593061]
[1747504531142,4.04612583,2471.5,2471.4,0.38593061]
[1747504531773,4.85171702,2471.2,2471.1,0.38593061]
[1747504532043,12.49171702,2471.2,2471.1,0.38593061]
[1747504533985,4.04718627,2470.9,2470.7,8.4567]
[1747504534575,4.04718627,2470.9,2470.7,7.642]
[1747504534576,4.04722707,2470.9,2470.7,7.642]
[1747504534891,4.04723811,2470.9,2470.7,7.642]
[1747504535982,0.8134,2471.5,2470.9,0.7637]
[1747504536148,4.04664677,2471.2,2470.9,0.7637]
[1747504536685,11.6874678,2471.3,2470.9,0.7637]
[1747504536847,4.04621011,2471.5,2471.0,4.59682936]
[1747504537169,4.04663381,2471.2,2471.1,7.642]
[1747504537373,4.04661702,2471.2,2471.1,7.642]
[1747504537683,4.04634086,2471.4,2471.1,7.642]
[1747504538352,4.04661702,2471.2,2471.1,7.642]
[1747504538973,0.7868,2471.3,2471.0,7.642]
[1747504539180,4.04690861,2471.1,2471.0,7.642]
[1747504540452,1.9645206,2471.1,2470.6,17.471]
[1747504540773,2.7513206,2471.3,2470.6,17.471]
[1747504541090,4.04699342,2471.0,2470.6,17.471]
[1747504541951,4.04713195,2470.9,2470.6,17.471]
[1747504542147,4.04743594,2470.7,2470.6,17.471]
[1747504542500,4.04776361,2470.5,2470.4,0.48218979]
[1747504542709,4.04776361,2470.5,2470.3,7.643]
[1747504543431,6.79849724,2470.9,2470.3,11.69108952]
[1747504543549,4.04722333,2470.9,2470.4,0.55]
[1747504543755,4.0473418,2470.8,2470.4,0.55]
[1747504543992,11.68897857,2471.0,2470.4,6.30928923]
[1747504544149,4.04719059,2470.9,2470.4,0.55]
[1747504544356,4.04719337,2470.9,2470.4,4.5978551]
[1747504544575,4.04736021,2470.8,2470.4,0.55]
[1747504545690,4.04727213,2470.8,2470.5,7.643]
[1747504546103,4.04746817,2470.7,2470.5,7.643]
[1747504546466,4.04736141,2470.8,2470.6,0.8245]
[1747504546670,0.7868,2470.8,2469.9,17.95818979]
[1747504547007,4.04782594,2470.5,2470.1,0.55]
[1747504548093,4.04782594,2470.5,2470.0,12.51602273]
[1747504548094,4.04782594,2470.5,2470.3,0.55]
[1747504548415,4.0476018,2470.6,2470.3,0.55]
[1747504548976,4.04761495,2470.6,2470.4,0.8245]
[1747504549806,10.3933206,2471.0,2470.2,0.55]
[1747504549965,4.04769189,2470.6,2470.2,4.5982089]
[1747504550166,8.7868,2471.0,2470.2,4.5982089]
[1747504550510,4.04756771,2470.7,2470.2,4.5982089]
[1747504550661,4.04756771,2470.7,2470.2,6.30962819]
[1747504550983,4.04735867,2470.8,2470.4,1.3745]
[1747504551709,4.04744256,2470.7,2470.4,1.3745]
[1747504552008,11.76717919,2470.9,2470.4,1.3745]
[1747504552723,4.04744938,2470.7,2470.4,1.3745]
[1747504552921,4.04744938,2470.7,2470.5,7.721]
[1747504554526,4.04731526,2470.8,2470.5,7.721]
[1747504554741,0.7868,2471.2,2470.7,0.8221]
[1747504554883,4.0470264,2471.0,2470.7,0.8221]
[1747504555084,4.04685205,2471.1,2470.7,4.86947532]
[1747504555331,4.04685205,2471.1,2470.7,0.8221]
[1747504555681,4.04685205,2471.1,2470.8,0.55]
[1747504556841,4.04694577,2471.0,2470.8,0.55]
[1747504556987,4.04687665,2471.1,2470.8,0.55]
[1747504557186,0.7543,2471.4,2470.8,0.55]
[1747504557404,7.704,2471.3,2470.8,0.55]
[1747504557604,11.75045965,2471.3,2470.9,0.8221]
[1747504557809,4.04663326,2471.2,2470.9,0.8221]
[1747504558489,4.04631167,2471.4,2470.9,0.8221]
[1747504558633,4.04668376,2471.2,2470.9,0.8221]
[1747504558799,4.04668376,2471.2,2471.0,0.38668057]
[1747504558994,0.7543,2471.7,2471.0,8.10768057]
[1747504559297,4.046469,2471.3,2471.0,8.10768057]
[1747504560132,4.046469,2471.3,2471.1,0.38668057]
[1747504560633,4.04612583,2471.5,2471.1,0.38668057]
[1747504560822,4.0462925,2471.4,2471.1,0.38668057]
[1747504561017,4.04644481,2471.4,2471.1,0.38668057]
[1747504561222,4.04652951,2471.3,2471.1,0.38668057]
[1747504563309,4.04654226,2471.3,2471.1,0.38668057]
[1747504565506,4.04612583,2471.5,2471.1,0.38668057]
[1747504566742,0.797,2472.1,2471.4,0.55]
[1747504566912,11.73348214,2471.9,2471.5,0.7853]
[1747504567243,11.7335935,2471.9,2471.5,8.5053]
[1747504567441,4.0455935,2471.9,2471.5,12.55141107]
[1747504567737,4.04565378,2471.8,2471.5,8.5053]
[1747504568245,4.04565378,2471.8,2471.6,0.38668057]
[1747504569330,4.04565378,2471.8,2471.5,8.5053]
[1747504569331,4.04596212,2471.6,2471.5,8.5053]
[1747504569528,4.04551866,2471.9,2471.5,9.0553]
[1747504569824,4.04570993,2471.8,2471.5,9.0553]
[1747504570031,4.04580654,2471.7,2471.5,9.0553]
[1747504570540,4.0455261,2471.9,2471.5,9.0553]
[1747504570541,4.04571601,2471.8,2471.5,9.0553]
[1747504571336,4.04549781,2471.9,2471.5,9.0553]
[1747504571539,11.73433228,2472.0,2471.5,9.0553]
[1747504571744,4.04553996,2471.9,2471.5,10.36546378]
[1747504571933,4.04563723,2471.8,2471.5,10.36546378]
[1747504572955,4.04555436,2471.9,2471.5,10.36546378]
[1747504573310,4.04564951,2471.8,2471.5,10.36546378]
[1747504573723,4.04568179,2471.8,2471.5,10.36546378]
[1747504575042,0.797,2472.1,2471.6,1.03654638]
[1747504575249,4.04547962,2471.9,2471.6,1.03654638]
[1747504576646,4.04547962,2471.9,2471.5,9.0553]
[1747504578247,4.04547962,2471.9,2471.5,13.10141974]
[1747504579546,4.04547962,2471.9,2471.5,9.0553]
[1747504580448,4.04547962,2471.9,2471.5,13.10142531]
[1747504580652,7.661,2472.2,2471.7,4.04568199]
[1747504580849,4.04493392,2472.3,2471.9,0.55]
[1747504581144,4.04500293,2472.2,2471.9,0.55]
[1747504584850,1.9645206,2472.4,2471.8,0.8281]
[1747504585066,4.04530744,2472.0,2471.6,7.66]
[1747504585222,4.04530744,2472.0,2471.6,9.81372073]
[1747504585418,4.04530744,2472.0,2471.6,13.8596719]
[1747504585662,4.04527947,2472.1,2471.6,13.8596719]
[1747504586565,4.04527947,2472.1,2471.7,0.38651901]
[1747504587222,4.04498286,2472.2,2471.9,0.7989]
[1747504588949,4.04498286,2472.2,2471.7,1.3177]
[1747504589151,4.04524617,2472.1,2471.7,1.3177]
[1747504589549,4.04563476,2471.8,2471.6,0.55]
[1747504589774,4.04563476,2471.8,2471.7,7.66]
[1747504589958,4.04553563,2471.9,2471.7,7.66]
[1747504592462,4.04563476,2471.8,2471.7,7.66]
[1747504593572,4.04591259,2471.7,2471.6,7.66]
[1747504595164,4.04596212,2471.6,2471.5,0.7677]